bitfinex/quotes_BTCUSD_20251007
["timestamp","ask_amount","ask_price","bid_price","bid_amount"]
[1759880226901,0.18478178,121580.0,121570.0,1.16195458]
[1759880227163,0.18978178,121580.0,121570.0,1.16295458]
[1759880227369,0.18478178,121580.0,121570.0,1.16195458]
[1759880227744,0.18978178,121580.0,121570.0,1.16295458]
[1759880229632,0.18978178,121580.0,121570.0,0.79848268]
[1759880229762,0.18978178,121580.0,121570.0,0.43348269]
[1759880230148,0.18978178,121580.0,121570.0,0.37811459]
[1759880230357,0.18978178,121580.0,121570.0,0.61247459]
[1759880230700,0.18978178,121580.0,121570.0,0.34796269]
[1759880230901,0.18978178,121580.0,121570.0,0.58232269]
[1759880231418,0.18978178,121580.0,121570.0,0.61247459]
[1759880233036,0.18978178,121580.0,121570.0,0.97747458]
[1759880239542,0.18978178,121580.0,121570.0,1.81291926]
[1759880239752,0.08214347,121620.0,121610.0,0.19461205]
[1759880240009,0.08214347,121620.0,121610.0,0.92981645]
[1759880240218,0.08214347,121620.0,121610.0,0.94836455]
[1759880240396,0.08214347,121620.0,121610.0,0.97668455]
[1759880240592,0.01594844,121620.0,121610.0,0.97668455]
[1759880240826,0.04894844,121620.0,121610.0,1.00983645]
[1759880240996,0.05794844,121620.0,121610.0,1.01134066]
[1759880241169,0.05794844,121620.0,121610.0,1.03603137]
[1759880241779,0.04894844,121620.0,121610.0,0.61730903]
[1759880241990,0.04894844,121620.0,121610.0,1.03503137]
[1759880242237,0.04994844,121620.0,121610.0,0.80267137]
[1759880242389,0.04994844,121620.0,121610.0,1.03703137]
[1759880242893,0.01694844,121620.0,121610.0,0.79967137]
[1759880243099,0.01694844,121620.0,121610.0,1.03403137]
[1759880243826,0.01694844,121620.0,121610.0,1.03503137]
[1759880243827,0.02594844,121620.0,121610.0,1.03503137]
[1759880244290,0.02594844,121620.0,121610.0,1.03499137]
[1759880245930,0.02594844,121620.0,121610.0,0.80067137]
[1759880246153,0.02594844,121620.0,121610.0,1.03499137]
[1759880247366,0.02594844,121620.0,121610.0,0.80067137]
[1759880247570,0.02594844,121620.0,121610.0,1.03499137]
[1759880247779,0.02594844,121620.0,121610.0,0.80067137]
[1759880247983,0.02594844,121620.0,121610.0,1.03499137]
[1759880248187,0.02594844,121620.0,121610.0,0.38294903]
[1759880248388,0.60811741,121620.0,121610.0,0.11204627]
[1759880249225,1.64768913,121620.0,121610.0,0.00350421]
[1759880249427,1.60015975,121620.0,121610.0,0.00350421]
[1759880250090,6.16949875,121620.0,121610.0,0.00350421]
[1759880250267,6.00383781,121620.0,121610.0,0.00350421]
[1759880250487,6.57282681,121620.0,121610.0,0.00350421]
[1759880250777,6.65282361,121620.0,121610.0,0.00350421]
[1759880251181,6.65182361,121620.0,121610.0,0.00150421]
[1759880251383,7.06954595,121620.0,121610.0,0.00150421]
[1759880251606,6.66982361,121620.0,121610.0,0.00350421]
[1759880251781,6.731935,121620.0,121610.0,0.00350421]
[1759880252165,6.722935,121620.0,121610.0,0.00250421]
[1759880252286,6.741935,121620.0,121610.0,0.00350421]
[1759880252488,6.704935,121620.0,121610.0,0.00050421]
[1759880252698,7.06338,121620.0,121610.0,0.00050421]
[1759880252924,5.595056,121620.0,121610.0,0.00350421]
[1759880253125,1.61807,121620.0,121610.0,0.00350421]
[1759880253325,5.979437,121620.0,121610.0,0.00350421]
[1759880253533,6.117825,121620.0,121610.0,0.00550421]
[1759880253727,0.63750646,121620.0,121610.0,0.02185421]
[1759880253946,0.89243803,121620.0,121610.0,0.06486421]
[1759880254156,1.19279703,121620.0,121610.0,0.03125421]
[1759880254354,1.19279703,121620.0,121610.0,0.00550421]
[1759880254571,0.97265003,121620.0,121610.0,0.00550421]
[1759880254770,1.50923803,121620.0,121610.0,0.00550421]
[1759880255014,1.52652703,121620.0,121610.0,0.00550421]
[1759880255182,1.52742703,121620.0,121610.0,0.00550421]
[1759880255556,1.36582003,121620.0,121610.0,0.00550421]
[1759880255758,1.31234303,121620.0,121610.0,0.01490421]
[1759880255963,0.97315303,121620.0,121610.0,0.01490421]
[1759880256157,1.05314983,121620.0,121610.0,0.01490421]
[1759880256584,0.97315303,121620.0,121610.0,0.01490421]
[1759880257430,0.97315303,121620.0,121610.0,0.03125421]
[1759880258120,1.65694603,121620.0,121610.0,0.00550421]
[1759880258333,1.69298203,121620.0,121610.0,0.00550421]
[1759880258560,1.43292603,121620.0,121610.0,0.00550421]
[1759880258815,1.67541303,121620.0,121610.0,0.01490421]
[1759880259031,1.72685403,121620.0,121610.0,0.01490421]
[1759880259265,0.97315303,121620.0,121610.0,0.03125421]
[1759880259486,1.59770603,121620.0,121610.0,0.03125421]
[1759880259725,1.48414068,121620.0,121610.0,0.01480421]
[1759880259946,1.51654168,121620.0,121610.0,0.01480421]
[1759880260182,1.14208268,121620.0,121610.0,0.01480421]
[1759880260393,0.16446015,121610.0,121600.0,0.18879557]
[1759880260620,0.36336806,121610.0,121600.0,0.20481557]
[1759880260841,0.34698124,121610.0,121600.0,0.22316557]
[1759880261392,0.66496424,121610.0,121600.0,0.22316557]
[1759880261604,0.66496424,121610.0,121600.0,0.24239557]
[1759880261815,0.89944424,121610.0,121600.0,0.24239557]
[1759880262017,0.43544424,121610.0,121600.0,0.24639557]
[1759880262673,0.45344424,121610.0,121600.0,0.24839557]
[1759880262885,0.21896424,121610.0,121600.0,0.24839557]
[1759880263114,0.05450409,121610.0,121600.0,0.33151763]
[1759880263351,0.28894409,121610.0,121600.0,0.74923997]
[1759880264012,0.28894409,121610.0,121600.0,0.77739187]
[1759880264013,0.03650409,121610.0,121600.0,0.77739187]
[1759880264475,0.01050409,121610.0,121600.0,0.77439187]
[1759880264586,0.01050409,121610.0,121600.0,0.77739187]
[1759880264796,0.03750409,121610.0,121600.0,0.77739187]
[1759880265000,0.03750409,121610.0,121600.0,0.35966953]
[1759880265223,0.03750409,121610.0,121600.0,0.77739187]
[1759880268524,0.01050409,121610.0,121600.0,0.77439187]
[1759880268914,0.00950409,121610.0,121600.0,1.11439187]
[1759880269135,0.01050409,121610.0,121600.0,1.94935277]
[1759880269819,0.00950409,121610.0,121600.0,1.94935277]
[1759880270272,0.00950409,121610.0,121600.0,1.95035277]
[1759880270525,0.00050409,121610.0,121600.0,1.94935277]
[1759880270722,0.00950409,121610.0,121600.0,1.94935277]
[1759880270925,0.00950409,121610.0,121600.0,1.94835277]
[1759880270926,0.00050409,121610.0,121600.0,1.94835277]
[1759880271261,0.00650409,121610.0,121600.0,1.94935277]
[1759880271860,0.00750409,121610.0,121600.0,1.95235277]
[1759880272854,0.00750409,121610.0,121600.0,2.27223277]
[1759880273614,0.00750409,121610.0,121600.0,2.29692228]
[1759880274422,0.00750409,121610.0,121600.0,2.32192227]
[1759880276440,0.00750409,121610.0,121600.0,2.23636227]
[1759880276630,0.00750409,121610.0,121600.0,1.90432119]
[1759880277274,0.00750409,121610.0,121600.0,2.32188227]
[1759880279354,0.00750409,121610.0,121600.0,2.23632227]
[1759880279578,0.00750409,121610.0,121600.0,2.29715276]
[1759880282892,0.00050409,121610.0,121600.0,2.29315276]
[1759880283131,0.02267137,121650.0,121640.0,0.50441959]
[1759880283132,0.00073378,121650.0,121640.0,0.50441959]
[1759880283365,0.06619503,121680.0,121670.0,0.16437905]
[1759880283590,0.06619503,121680.0,121670.0,0.99199009]
[1759880283836,0.06619503,121680.0,121670.0,0.97555219]
[1759880284048,0.06619503,121700.0,121690.0,0.16435204]
[1759880284049,0.08258185,121700.0,121690.0,0.16435204]
[1759880284221,0.56619503,121700.0,121690.0,0.68045518]
[1759880284460,0.58237196,121710.0,121690.0,0.74124518]
[1759880284670,0.58999274,121710.0,121700.0,0.01824]
[1759880284875,1.20954811,121710.0,121700.0,0.21598853]
[1759880285088,0.70954811,121710.0,121700.0,0.23140853]
[1759880285296,0.66487635,121710.0,121700.0,0.23140853]
[1759880285473,0.50055132,121710.0,121700.0,0.23140853]
[1759880285717,0.4181124,121710.0,121700.0,0.24054853]
[1759880285905,0.68374743,121710.0,121700.0,0.07621]
[1759880286126,0.69674743,121710.0,121700.0,0.07621]
[1759880286341,0.70436119,121710.0,121700.0,0.02461]
[1759880286545,0.74136119,121710.0,121700.0,0.05186]
[1759880286763,0.72836119,121710.0,121700.0,0.21619853]
[1759880287000,0.46236215,121710.0,121700.0,0.23440853]
[1759880287601,0.04516508,121710.0,121700.0,0.24354853]
[1759880287752,0.47113521,121710.0,121700.0,0.24354853]
[1759880287972,0.63707342,121710.0,121700.0,0.24554853]
[1759880288404,0.47274839,121710.0,121700.0,0.24554853]
[1759880289873,0.63707342,121710.0,121700.0,0.24554853]
[1759880290264,0.64168834,121710.0,121700.0,0.24554853]
[1759880290594,0.47736331,121710.0,121700.0,0.24554853]
[1759880290755,0.86302234,121710.0,121700.0,0.03866]
[1759880291161,0.74984834,121710.0,121700.0,0.06291]
[1759880291570,0.74984834,121710.0,121700.0,0.22724853]
[1759880292141,0.06776824,121710.0,121700.0,0.22724853]
[1759880292315,0.73559213,121710.0,121700.0,0.23640853]
[1759880292605,0.06776824,121710.0,121700.0,0.59306249]
[1759880292816,0.06016624,121710.0,121700.0,0.59306249]
[1759880293922,0.02316624,121710.0,121700.0,0.59006249]
[1759880294229,0.06576286,121710.0,121700.0,0.59306249]
[1759880294561,0.04776286,121710.0,121700.0,0.14088396]
[1759880294780,0.63072496,121710.0,121700.0,0.11073206]
[1759880295017,0.64172496,121710.0,121700.0,0.08712206]
[1759880295223,0.95592176,121710.0,121700.0,0.004]
[1759880295462,0.87592496,121710.0,121700.0,0.004]
[1759880296231,0.22452789,121710.0,121700.0,0.18375853]
[1759880296440,0.45728789,121710.0,121700.0,0.24454853]
[1759880296647,0.05876286,121710.0,121700.0,0.35782249]
[1759880296871,0.05876286,121710.0,121700.0,0.59202249]
[1759880298032,0.05876286,121710.0,121700.0,0.35782249]
[1759880298245,0.05876286,121710.0,121700.0,0.59202249]
[1759880299329,0.23947471,121710.0,121700.0,0.32767059]
[1759880299476,0.22308789,121710.0,121700.0,0.56187059]
[1759880300582,0.22308789,121710.0,121700.0,0.32767059]
[1759880301490,0.05876286,121710.0,121700.0,0.32767059]
[1759880303213,0.07514968,121710.0,121700.0,0.32767059]
[1759880303893,0.0751574,121710.0,121700.0,0.32767059]
[1759880304718,0.05877058,121710.0,121700.0,0.35782249]
[1759880305785,0.02377058,121710.0,121700.0,0.44030249]
[1759880306002,0.01616624,121710.0,121700.0,0.44030249]
[1759880306201,0.02777608,121710.0,121700.0,0.44030249]
[1759880306434,0.02016624,121710.0,121700.0,0.44030249]
[1759880306589,0.02216624,121710.0,121700.0,0.44030249]
[1759880306992,0.02016624,121710.0,121700.0,0.44030249]
[1759880307955,0.02016624,121710.0,121700.0,0.67446249]
[1759880308577,0.02016624,121710.0,121700.0,0.35482249]
[1759880308778,0.02016624,121710.0,121700.0,0.67446249]
[1759880309143,0.02778449,121710.0,121700.0,0.67446249]
[1759880309926,0.02778449,121710.0,121700.0,0.35482249]
[1759880310128,0.02778449,121710.0,121700.0,0.67442249]
[1759880310266,0.02778449,121710.0,121700.0,0.35482249]
[1759880310464,0.02778449,121710.0,121700.0,0.58894249]
[1759880311671,0.20849634,121710.0,121700.0,0.32467059]
[1759880311867,0.19354952,121710.0,121700.0,0.27307059]
[1759880312110,0.27210632,121710.0,121700.0,0.27307059]
[1759880312374,0.27210632,121710.0,121700.0,0.32656059]
[1759880312375,0.02778449,121710.0,121700.0,0.32656059]
[1759880312591,0.04417131,121710.0,121700.0,0.32656059]
[1759880314865,0.20849634,121710.0,121700.0,0.32656059]
[1759880315066,0.19210952,121710.0,121700.0,0.32656059]
[1759880315265,0.02778449,121710.0,121700.0,0.32656059]
[1759880315472,0.04417131,121710.0,121700.0,0.32656059]
[1759880316363,0.02778449,121710.0,121700.0,0.32656059]
[1759880316939,0.02778449,121710.0,121700.0,0.56068059]
[1759880319613,0.02922449,121710.0,121700.0,0.32656059]
[1759880319812,0.91695224,121710.0,121700.0,0.08412206]
[1759880319985,0.93639787,121710.0,121700.0,0.001]
[1759880320194,1.36183787,121710.0,121700.0,0.001]
[1759880320392,1.44495993,121710.0,121700.0,0.001]
[1759880320634,6.72023234,121710.0,121700.0,0.001]
[1759880320763,6.80022914,121710.0,121700.0,0.001]
[1759880320981,6.81895239,121710.0,121700.0,0.001]
[1759880321183,6.88530393,121710.0,121700.0,0.001]
[1759880321393,0.16437905,121670.0,121660.0,0.00994]
[1759880321596,0.16437905,121670.0,121650.0,0.26226807]
[1759880321597,0.16439256,121660.0,121650.0,0.09960503]
[1759880321803,0.16439256,121660.0,121650.0,0.19798709]
[1759880322246,0.16439256,121660.0,121650.0,0.37187317]
[1759880322587,0.16439256,121660.0,121650.0,0.31565224]
[1759880322725,0.16439256,121660.0,121650.0,0.32515224]
[1759880322905,0.18077938,121660.0,121650.0,0.32515224]
[1759880323106,0.19277938,121660.0,121650.0,0.32615224]
[1759880323313,0.17639256,121660.0,121650.0,0.32615224]
[1759880327314,0.17844448,121660.0,121650.0,0.32615224]
[1759880328415,0.01405192,121660.0,121650.0,0.32615224]
[1759880329011,0.01405192,121660.0,121650.0,0.56031224]
[1759880329211,0.01405192,121660.0,121650.0,0.32615224]
[1759880329526,0.01405192,121660.0,121650.0,0.56031224]
[1759880330056,0.01405192,121660.0,121650.0,0.32615224]
[1759880330256,0.01405192,121660.0,121650.0,0.56031224]
[1759880333804,0.01405192,121660.0,121650.0,0.93046414]
[1759880334010,0.01405192,121660.0,121650.0,0.69630414]
[1759880334215,0.01405192,121660.0,121650.0,1.01598414]
[1759880335063,0.00205192,121660.0,121650.0,1.01598414]
[1759880335268,0.00505192,121660.0,121650.0,1.01698414]
[1759880335706,0.00505192,121660.0,121650.0,1.01598414]
[1759880336534,0.00505192,121660.0,121650.0,1.01698414]
[1759880341634,0.00505192,121660.0,121650.0,1.04198413]
[1759880342038,0.00505192,121660.0,121650.0,0.72230413]
[1759880342252,0.00505192,121660.0,121650.0,1.04194413]
[1759880344655,0.00505192,121660.0,121650.0,0.66715224]
[1759880344863,0.00505192,121660.0,121650.0,0.90131224]
[1759880345540,0.24682734,121690.0,121670.0,0.16437726]
[1759880345737,0.16436572,121680.0,121660.0,0.16439256]
[1759880345946,0.16436572,121680.0,121670.0,0.0344]
[1759880345947,1.18315612,121680.0,121670.0,0.0344]
[1759880346072,0.16439256,121660.0,121650.0,0.01258248]
[1759880346281,0.16439256,121660.0,121650.0,0.09570454]
[1759880346474,0.16583256,121660.0,121650.0,0.11149454]
[1759880346681,0.16583256,121660.0,121650.0,0.27490062]
[1759880346904,0.16439256,121660.0,121650.0,0.30619062]
[1759880347937,0.16739256,121660.0,121650.0,0.30819062]
[1759880349255,0.16739256,121660.0,121650.0,0.06066248]
[1759880351388,0.16739256,121660.0,121650.0,0.07061248]
[1759880353689,0.16883256,121660.0,121650.0,0.02837248]
[1759880353893,0.16439256,121660.0,121650.0,0.02837248]
[1759880354679,0.17247846,121660.0,121650.0,0.02837248]
[1759880355290,0.93002272,121660.0,121650.0,0.00298248]
[1759880355497,1.51005872,121660.0,121650.0,0.00298248]
[1759880356307,1.51005872,121660.0,121650.0,0.00198248]
[1759880356510,1.51005872,121660.0,121650.0,0.00098248]
[1759880356708,1.59205552,121660.0,121650.0,0.00098248]
[1759880356931,1.62905552,121660.0,121650.0,0.00398248]
[1759880357129,1.8476294,121660.0,121650.0,0.00398248]
[1759880357579,1.8656294,121660.0,121650.0,0.00598248]
[1759880357864,2.1853094,121660.0,121650.0,0.00598248]
[1759880358286,2.1053126,121660.0,121650.0,0.00598248]
[1759880360926,1.7856326,121660.0,121650.0,0.00598248]
[1759880361134,2.1053126,121660.0,121650.0,0.00598248]
[1759880361333,2.0198326,121660.0,121650.0,0.00598248]
[1759880361542,2.1053126,121660.0,121650.0,0.00598248]
[1759880362931,2.1853094,121660.0,121650.0,0.00598248]
[1759880363132,2.20055532,121660.0,121650.0,0.00598248]
[1759880363338,2.1853094,121660.0,121650.0,0.00598248]
[1759880364368,6.59318173,121660.0,121650.0,0.00598248]
[1759880364526,1.72119273,121660.0,121650.0,0.00598248]
[1759880364730,6.61073773,121660.0,121650.0,0.00598248]
[1759880365329,2.38946277,121660.0,121650.0,0.00598248]
[1759880365524,2.38946277,121660.0,121610.0,0.06619503]
[1759880365525,0.16444663,121620.0,121610.0,0.06619503]
[1759880365759,0.39883778,121620.0,121610.0,0.06619503]
[1759880366392,0.16446015,121610.0,121600.0,0.17358368]
[1759880366601,0.16446015,121610.0,121600.0,0.10782206]
[1759880366742,0.16446015,121610.0,121600.0,0.0247]
[1759880368187,0.16546015,121610.0,121600.0,0.0317]
[1759880368355,0.16646015,121610.0,121600.0,0.0337]
[1759880369454,0.80457829,121610.0,121600.0,0.009]
[1759880370132,0.48622015,121610.0,121600.0,0.0337]
[1759880371488,0.40070015,121610.0,121600.0,0.0337]
[1759880371894,0.40070015,121610.0,121600.0,0.03626592]
[1759880372353,0.40070015,121610.0,121600.0,0.02067592]
[1759880372561,1.03881829,121610.0,121600.0,0.01156592]
[1759880373398,0.16646015,121610.0,121600.0,0.01156592]
[1759880373533,0.48622015,121610.0,121600.0,0.02067592]
[1759880373742,0.48626015,121610.0,121600.0,0.03626592]
[1759880373943,0.39974015,121610.0,121600.0,0.02926592]
[1759880374154,0.49567569,121610.0,121600.0,0.04026592]
[1759880374354,0.49667569,121610.0,121600.0,0.04026592]
[1759880375220,0.57667249,121610.0,121600.0,0.04026592]
[1759880375994,0.57667249,121610.0,121600.0,0.01556592]
[1759880376221,1.78584463,121610.0,121600.0,0.01556592]
[1759880377378,2.12584463,121610.0,121600.0,0.01556592]
[1759880377555,1.48772649,121610.0,121600.0,0.01556592]
[1759880377791,2.04584783,121610.0,121600.0,0.01556592]
[1759880378179,1.40772969,121610.0,121600.0,0.01556592]
[1759880378377,2.04584783,121610.0,121600.0,0.01556592]
[1759880379056,1.82569923,121610.0,121600.0,0.01556592]
[1759880379257,1.90569603,121610.0,121600.0,0.01556592]
[1759880379914,1.82017603,121610.0,121600.0,0.01556592]
[1759880380124,1.58589603,121610.0,121600.0,0.01556592]
[1759880380339,0.78839269,121610.0,121600.0,0.04085592]
[1759880380550,1.47283723,121610.0,121600.0,0.04085592]
[1759880380962,1.03326469,121610.0,121600.0,0.06567592]
[1759880381172,1.02064315,121610.0,121600.0,0.07480592]
[1759880381379,0.70084315,121610.0,121600.0,0.07480592]
[1759880381582,1.02064315,121610.0,121600.0,0.07480592]
[1759880381882,1.01061815,121610.0,121600.0,0.07480592]
[1759880382578,0.69081815,121610.0,121600.0,0.07480592]
[1759880382725,1.01061815,121610.0,121600.0,0.07480592]
[1759880383333,1.01061815,121610.0,121600.0,0.04998592]
[1759880383535,1.01061815,121610.0,121600.0,0.04085592]
[1759880383911,1.01061815,121610.0,121600.0,0.07480592]
[1759880384132,0.68053615,121610.0,121600.0,0.2579396]
[1759880384335,0.48830015,121610.0,121600.0,0.09346592]
[1759880384739,0.68053215,121610.0,121600.0,0.09346592]
[1759880385540,0.69578938,121610.0,121600.0,0.09346592]
[1759880386013,0.68053215,121610.0,121600.0,0.09346592]
[1759880386470,0.69579137,121610.0,121600.0,0.09346592]
[1759880386678,0.66633515,121610.0,121600.0,0.2579396]
[1759880387315,0.68159443,121610.0,121600.0,0.2579396]
[1759880387729,0.36175443,121610.0,121600.0,0.2579396]
[1759880387939,0.64902843,121610.0,121600.0,0.2579396]
[1759880389450,0.58109494,121610.0,121600.0,0.2579396]
[1759880389600,0.66661494,121610.0,121600.0,0.2579396]
[1759880390794,0.64902843,121610.0,121600.0,0.2579396]
[1759880391380,0.6666226,121610.0,121600.0,0.2579396]
[1759880392652,0.6666226,121610.0,121600.0,0.7590312]
[1759880392653,0.01925928,121610.0,121600.0,0.7590312]
[1759880392919,0.23832,121610.0,121600.0,0.7590312]
[1759880393130,0.01925928,121610.0,121600.0,0.75883459]
[1759880393273,0.004,121610.0,121600.0,1.17660752]
[1759880393467,0.23832,121610.0,121600.0,1.17660752]
[1759880393941,0.004,121610.0,121600.0,1.17660752]
[1759880395545,0.001,121610.0,121600.0,1.16360752]
[1759880395768,0.003,121610.0,121600.0,1.18160752]
[1759880395968,0.004,121610.0,121600.0,1.18360752]
[1759880397001,0.004,121610.0,121600.0,1.21375942]
[1759880399224,0.004,121610.0,121600.0,1.44803942]
[1759880401053,0.004,121610.0,121600.0,2.20581235]
[1759880401264,0.004,121610.0,121600.0,2.29133235]
[1759880401503,0.004,121610.0,121600.0,2.31633234]
[1759880402117,0.001,121610.0,121600.0,2.29833234]
[1759880402374,0.00015115,121620.0,121610.0,0.50446015]
[1759880402620,0.00015115,121620.0,121610.0,1.44683807]
[1759880402867,0.00015115,121620.0,121610.0,1.50180807]
[1759880403500,0.00015115,121620.0,121610.0,1.53749502]
[1759880403707,0.00115115,121620.0,121610.0,1.53749502]
[1759880404100,0.00215115,121620.0,121610.0,1.54249502]
[1759880405060,0.00215115,121620.0,121610.0,1.99041985]
[1759880405529,0.00215115,121620.0,121610.0,2.09041985]
[1759880405980,1e-08,121620.0,121610.0,2.11541984]
[1759880406433,1e-08,121620.0,121610.0,0.86210105]
[1759880407173,1e-08,121620.0,121610.0,1.18186105]
[1759880407816,1e-08,121620.0,121610.0,0.86415362]
[1759880408029,1e-08,121620.0,121610.0,1.18391362]
[1759880410040,1e-08,121620.0,121610.0,0.86415362]
[1759880410246,1e-08,121620.0,121610.0,1.18387362]
[1759880413546,1e-08,121620.0,121610.0,1.44757362]
[1759880415780,1e-08,121620.0,121610.0,1.12785362]
[1759880415919,1e-08,121620.0,121610.0,1.44753362]
[1759880416359,1e-08,121620.0,121610.0,1.12785362]
[1759880416539,1e-08,121620.0,121610.0,1.36201362]
[1759880416744,1e-08,121620.0,121610.0,1.44749362]
[1759880416956,1e-08,121620.0,121610.0,1.12785362]
[1759880417171,1e-08,121620.0,121610.0,0.86415362]
[1759880417328,1e-08,121620.0,121610.0,1.18379362]
[1759880418925,1e-08,121620.0,121610.0,1.09831362]
[1759880419141,1e-08,121620.0,121610.0,1.18379362]
[1759880422433,1e-08,121620.0,121610.0,1.44749362]
[1759880422887,1e-08,121620.0,121610.0,1.18379362]
[1759880425092,1e-08,121620.0,121610.0,0.86415362]
[1759880425311,1e-08,121620.0,121610.0,1.52583362]
[1759880426091,1e-08,121620.0,121610.0,0.86415362]
[1759880426258,1e-08,121620.0,121610.0,1.18375362]
[1759880428883,1e-08,121620.0,121610.0,0.86415362]
[1759880429084,1e-08,121620.0,121610.0,1.18375362]
[1759880434230,1e-08,121620.0,121610.0,1.44027362]
[1759880434670,1e-08,121620.0,121610.0,1.18375362]
[1759880434881,1e-08,121620.0,121610.0,0.86415362]
[1759880435087,1e-08,121620.0,121610.0,1.18375362]
[1759880436229,1e-08,121620.0,121610.0,0.86415362]
[1759880436493,1e-08,121620.0,121610.0,1.18371362]
[1759880437248,1e-08,121620.0,121610.0,0.49400172]
[1759880437459,1e-08,121620.0,121610.0,0.17985463]
[1759880438084,0.16444664,121620.0,121610.0,0.17985463]
[1759880438303,0.23907092,121620.0,121610.0,0.17985463]
[1759880438487,0.65642386,121620.0,121610.0,0.17985463]
[1759880439037,1.0737768,121620.0,121610.0,0.10117463]
[1759880439237,1.08463251,121620.0,121610.0,0.01305257]
[1759880439482,1.31871251,121620.0,121610.0,0.01305257]
[1759880439694,2.92949245,121620.0,121610.0,0.01405257]
[1759880439898,2.94475876,121620.0,121610.0,0.01405257]
[1759880440102,2.72989426,121620.0,121610.0,0.01305257]
[1759880440324,3.04255013,121620.0,121610.0,0.01305257]
[1759880440523,5.72318738,121620.0,121610.0,1e-08]
[1759880440964,5.81730944,121620.0,121610.0,1e-08]
[1759880441401,5.83486326,121620.0,121610.0,1e-08]
[1759880441604,5.82386326,121620.0,121610.0,1e-08]
[1759880441871,5.51930326,121620.0,121610.0,0.00100001]
[1759880442106,5.07532726,121620.0,121610.0,0.00100001]
[1759880442329,5.07532726,121620.0,121610.0,1e-08]
[1759880442330,5.24400526,121620.0,121610.0,1e-08]
[1759880442551,2.70221226,121620.0,121610.0,0.00500001]
[1759880442972,5.78064626,121620.0,121610.0,0.00500001]
[1759880443260,5.78064626,121620.0,121610.0,1e-08]
[1759880443436,5.72669644,121620.0,121610.0,1e-08]
[1759880443644,5.68923844,121620.0,121610.0,1e-08]
[1759880443789,5.68923844,121620.0,121590.0,0.00434001]
[1759880443790,1.33917956,121600.0,121590.0,0.00434001]
[1759880443988,1.66854961,121600.0,121590.0,0.00434001]
[1759880444248,1.67567961,121600.0,121590.0,0.00434001]
[1759880444706,1.44155961,121600.0,121590.0,0.01963001]
[1759880444919,1.75410961,121600.0,121590.0,0.01963001]
[1759880445134,0.28472373,121600.0,121590.0,0.10475207]
[1759880445338,0.28472373,121600.0,121590.0,0.15730207]
[1759880445339,0.52440693,121600.0,121590.0,0.15730207]
[1759880445548,0.94375987,121600.0,121590.0,0.15830207]
[1759880445746,0.94375987,121600.0,121590.0,0.13883207]
[1759880447162,1.36824281,121600.0,121590.0,0.08612206]
[1759880447354,1.04856281,121600.0,121590.0,0.08612206]
[1759880447757,1.36824281,121600.0,121590.0,0.08612206]
[1759880448102,1.36824281,121600.0,121590.0,0.10141206]
[1759880449113,1.19389887,121600.0,121590.0,0.11075206]
[1759880449281,1.03869255,121600.0,121590.0,0.11075206]
[1759880449485,0.19685667,121600.0,121590.0,0.15480868]
[1759880449692,0.92850662,121600.0,121590.0,0.16432868]
[1759880450895,0.84302662,121600.0,121590.0,0.16432868]
[1759880451508,0.92854662,121600.0,121590.0,0.16432868]
[1759880452010,1.00854342,121600.0,121590.0,0.16432868]
[1759880452218,0.68882342,121600.0,121590.0,0.16432868]
[1759880452418,1.00854342,121600.0,121590.0,0.16432868]
[1759880452643,0.92854662,121600.0,121590.0,0.16432868]
[1759880453281,0.51119368,121600.0,121590.0,0.16432868]
[1759880453732,0.027,121600.0,121590.0,0.32881589]
[1759880453939,0.42567368,121600.0,121590.0,0.32881589]
[1759880454154,0.2612,121600.0,121590.0,0.32881589]
[1759880454362,0.42567368,121600.0,121590.0,0.32881589]
[1759880456118,0.027,121600.0,121590.0,0.32881589]
[1759880456281,0.42567368,121600.0,121590.0,0.32881589]
[1759880456481,0.027,121600.0,121590.0,0.32881589]
[1759880456682,0.2612,121600.0,121590.0,0.32881589]
[1759880457285,0.42567368,121600.0,121590.0,0.32881589]
[1759880459866,0.2612,121600.0,121590.0,0.32881589]
[1759880460426,0.027,121600.0,121590.0,0.32881589]
[1759880460622,0.2612,121600.0,121590.0,0.32881589]
[1759880461030,0.42567368,121600.0,121590.0,0.32881589]
[1759880461226,0.44084428,121600.0,121590.0,0.32881589]
[1759880463192,0.42567368,121600.0,121590.0,0.32881589]
[1759880464210,0.44087967,121600.0,121590.0,0.32881589]
[1759880465181,0.27640599,121600.0,121590.0,0.32881589]
[1759880466287,0.27644064,121600.0,121590.0,0.32881589]
[1759880472260,0.2612,121600.0,121590.0,0.32881589]
[1759880473253,0.42567368,121600.0,121590.0,0.32881589]
[1759880474032,0.027,121600.0,121590.0,0.32881589]
[1759880474233,0.2612,121600.0,121590.0,0.32881589]
[1759880475027,0.88820025,121600.0,121590.0,0.32881589]
[1759880475466,0.89533025,121600.0,121590.0,0.08714868]
[1759880475684,0.89979025,121600.0,121590.0,0.00402662]
[1759880476104,0.91507315,121600.0,121590.0,0.00402662]
[1759880476507,0.91061315,121600.0,121590.0,0.00402662]
[1759880476887,0.91507315,121600.0,121590.0,0.00402662]
[1759880477093,0.91061315,121600.0,121590.0,0.02028662]
[1759880477322,0.86598416,121600.0,121590.0,0.02956662]
[1759880478183,0.86598416,121600.0,121590.0,0.33026589]
[1759880478184,0.0422829,121600.0,121590.0,0.33026589]
[1759880478409,0.2764429,121600.0,121590.0,0.33026589]
[1759880478630,0.23404121,121600.0,121590.0,0.33026589]
[1759880479271,0.65193879,121600.0,121590.0,0.16577868]
[1759880479481,0.73906559,121600.0,121590.0,0.08714868]
[1759880479756,0.65906879,121600.0,121590.0,0.08714868]
[1759880480038,0.65906879,121600.0,121590.0,0.11268868]
[1759880484338,0.65906879,121600.0,121590.0,0.00402662]
[1759880485175,0.65906879,121600.0,121590.0,0.02949662]
[1759880487727,0.65906879,121600.0,121590.0,0.00402662]
[1759880489172,0.65906879,121600.0,121590.0,0.02949662]
[1759880490973,0.65906879,121600.0,121590.0,0.00402662]
[1759880491509,0.65906879,121600.0,121590.0,0.02949662]
[1759880491731,0.24117121,121600.0,121590.0,0.02949662]
[1759880492138,0.65906879,121600.0,121590.0,0.02949662]
[1759880493111,0.58950126,121600.0,121590.0,0.02949662]
[1759880493326,0.49128368,121600.0,121590.0,0.02949662]
[1759880493526,0.90918126,121600.0,121590.0,0.02949662]
[1759880495964,0.90205126,121600.0,121590.0,0.05211662]
[1759880498803,0.48415368,121600.0,121590.0,0.05211662]
[1759880499029,0.90205126,121600.0,121590.0,0.05211662]
[1759880499444,0.90918126,121600.0,121590.0,0.05211662]
[1759880499835,0.90918126,121600.0,121590.0,0.00402662]
[1759880500084,0.95871787,121600.0,121590.0,0.00402662]
[1759880500423,2.70046487,121600.0,121590.0,0.00402662]
[1759880501298,3.11836245,121600.0,121590.0,0.00402662]
[1759880501503,2.70046487,121600.0,121590.0,0.00402662]
[1759880503669,2.65538826,121600.0,121590.0,0.00402662]
[1759880504827,2.34239226,121600.0,121590.0,0.00402662]
[1759880505284,1.08038768,121600.0,121590.0,0.00402662]
[1759880505499,1.23359668,121600.0,121590.0,0.00402662]